Workbook

Sheet datos (hidden)
B1: solamente carga de datos
B3: Apellido y Nombre | C3: FEDE | D3: L1 | E3: L2 | F3: L3 | G3: L4 | H3: L5 | I3: L6 | J3: L7 | K3: L8 | L3: L9 | M3: L10 | N3: L11 | O3: L12 | P3: L13 | Q3: L14 | R3: L15 | S3: L16 | T3: L17 | U3: L18 | V3: L19 | W3: L20 | X3: L21 | Y3: L22 | Z3: L23 | AA3: L24 | AB3: LIN | AC3: TOTAL | AD3: PROM
A4: J01 | B4: JUAN IGNACIO ALI | C4: Argentina | D4: 171 | E4: 182 | F4: 177 | G4: 157 | H4: 160 | I4: 202 | J4: 179 | K4: 166 | L4: 170 | M4: 180 | N4: 190 | O4: 180 | P4: 162 | Q4: 182 | R4: 168 | S4: 167 | T4: 201 | U4: 155 | V4: 175 | W4: 163 | X4: 167 | Y4: 166 | Z4: 173 | AA4: 216 | AB4: =COUNTIF(D4:AA4,">0") -> 24 | AC4: =SUM(D4:AA4) -> 4209 | AD4: =AC4/AB4 -> 175.375
A5: J02 | B5: JAIR KELLY | C5: Aruba | D5: 118 | E5: 147 | F5: 188 | G5: 211 | H5: 199 | I5: 146 | J5: 204 | K5: 141 | L5: 124 | M5: 232 | N5: 166 | O5: 162 | P5: 121 | Q5: 134 | R5: 158 | S5: 237 | T5: 199 | U5: 200 | V5: 179 | W5: 216 | X5: 169 | Y5: 192 | Z5: 187 | AA5: 227 | AB5: 24 | AC5: 4257 | AD5: =AC5/AB5 -> 177.375
A6: J03 | B6: RENALD THIEL | C6: Aruba | D6: 213 | E6: 160 | F6: 173 | G6: 214 | H6: 194 | I6: 202 | J6: 204 | K6: 191 | L6: 221 | M6: 187 | N6: 188 | O6: 170 | P6: 170 | Q6: 150 | R6: 192 | S6: 201 | T6: 229 | U6: 157 | V6: 108 | W6: 158 | X6: 175 | Y6: 206 | Z6: 200 | AA6: 143 | AB6: 24 | AC6: 4406 | AD6: 183.5833333
A7: J04 | B7: SEBASTIAN SALAZAR | C7: Colombia | D7: 213 | E7: 222 | F7: 159 | G7: 211 | H7: 233 | I7: 145 | J7: 194 | K7: 170 | L7: 203 | M7: 211 | N7: 158 | O7: 180 | P7: 256 | Q7: 278 | R7: 204 | S7: 194 | T7: 238 | U7: 178 | V7: 218 | W7: 168 | X7: 201 | Y7: 190 | Z7: 158 | AA7: 218 | AB7: 24 | AC7: 4800 | AD7: 200
A8: J05 | B8: MAURICIO CABRERA | C8: Colombia | D8: 257 | E8: 212 | F8: 213 | G8: 188 | H8: 191 | I8: 161 | J8: 191 | K8: 190 | L8: 171 | M8: 190 | N8: 228 | O8: 180 | P8: 189 | Q8: 227 | R8: 235 | S8: 187 | T8: 222 | U8: 213 | V8: 232 | W8: 181 | X8: 216 | Y8: 224 | Z8: 233 | AA8: 175 | AB8: 24 | AC8: 4906 | AD8: 204.4166667
A9: J06 | B9: SEBASTIAN VICENCIO R | C9: Chile | D9: 121 | E9: 94 | F9: 111 | G9: 125 | H9: 119 | I9: 132 | J9: 152 | K9: 131 | L9: 148 | M9: 145 | N9: 130 | O9: 130 | P9: 100 | Q9: 103 | R9: 89 | S9: 127 | T9: 163 | U9: 169 | V9: 122 | W9: 97 | X9: 142 | Y9: 147 | Z9: 132 | AA9: 100 | AB9: 24 | AC9: 3029 | AD9: 126.2083333
A10: J07 | B10: EDUARDO MARTINEZ G | C10: Chile | D10: 136 | E10: 146 | F10: 136 | G10: 165 | H10: 137 | I10: 134 | J10: 110 | K10: 115 | L10: 120 | M10: 162 | N10: 132 | O10: 154 | P10: 177 | Q10: 158 | R10: 122 | S10: 134 | T10: 127 | U10: 155 | V10: 164 | W10: 130 | X10: 131 | Y10: 125 | Z10: 165 | AA10: 184 | AB10: 24 | AC10: 3419 | AD10: 142.4583333
A11: J08 | B11: ALEJANDRO ISHIKAWA | C11: Perú | D11: 166 | E11: 179 | F11: 214 | G11: 188 | H11: 228 | I11: 195 | J11: 141 | K11: 237 | L11: 165 | M11: 179 | N11: 160 | O11: 170 | P11: 233 | Q11: 204 | R11: 222 | S11: 211 | T11: 180 | U11: 187 | V11: 144 | W11: 258 | X11: 178 | Y11: 162 | Z11: 290 | AA11: 161 | AB11: 24 | AC11: 4652 | AD11: 193.8333333
A12: J09 | B12: SEBASTIAN YUZURIHA | C12: Perú | D12: 155 | E12: 168 | F12: 201 | G12: 264 | H12: 277 | I12: 205 | J12: 189 | K12: 200 | L12: 153 | M12: 182 | N12: 168 | O12: 184 | P12: 206 | Q12: 188 | R12: 171 | S12: 211 | T12: 219 | U12: 199 | V12: 227 | W12: 152 | X12: 169 | Y12: 213 | Z12: 223 | AA12: 242 | AB12: 24 | AC12: 4766 | AD12: 198.5833333
A13: J10 | B13: FRANCO GARCIA D. | C13: Uruguay | D13: 149 | E13: 142 | F13: 155 | G13: 114 | H13: 136 | I13: 166 | J13: 201 | K13: 135 | L13: 128 | M13: 170 | N13: 165 | O13: 178 | P13: 221 | Q13: 167 | R13: 199 | S13: 190 | T13: 146 | U13: 136 | V13: 175 | W13: 144 | X13: 131 | Y13: 166 | Z13: 150 | AA13: 188 | AB13: 24 | AC13: 3852 | AD13: 160.5
A14: J11 | B14: JOAQUIN MANRIQUE D. | C14: Uruguay | D14: 147 | E14: 129 | F14: 163 | G14: 146 | H14: 170 | I14: 166 | J14: 165 | K14: 184 | L14: 156 | M14: 123 | N14: 195 | O14: 170 | P14: 236 | Q14: 158 | R14: 165 | S14: 140 | T14: 183 | U14: 169 | V14: 165 | W14: 183 | X14: 184 | Y14: 179 | Z14: 126 | AA14: 138 | AB14: 24 | AC14: 3940 | AD14: 164.1666667
AB15: 0 | AC15: 0
AB16: 0 | AC16: 0
AB17: 0 | AC17: 0
AB18: 0 | AC18: 0
AB19: 0 | AC19: 0
AB20: 0 | AC20: 0
AB21: 0 | AC21: 0
AB22: 0 | AC22: 0
AB23: 0 | AC23: 0
AB24: 0 | AC24: 0
AB25: 0 | AC25: 0
AB26: 0 | AC26: 0
AB27: 0 | AC27: 0
AB28: 0 | AC28: 0
AB29: 0 | AC29: 0
AB30: 0 | AC30: 0
AB31: 0 | AC31: 0
AB32: 0 | AC32: 0
AB33: 0 | AC33: 0
AB34: 0 | AC34: 0
AB35: 0 | AC35: 0
AB36: 0 | AC36: 0
AB37: 0 | AC37: 0
AB38: =COUNTIF(D38:AA38,">0") -> 0 | AC38: =SUM(D38:AA38) -> 0
AB39: 0 | AC39: 0
AB40: 0 | AC40: 0
AB41: 0 | AC41: 0
AB42: 0 | AC42: 0
AB43: 0 | AC43: 0
AB44: 0 | AC44: 0
AB45: 0 | AC45: 0
AB46: 0 | AC46: 0
AB47: 0 | AC47: 0
AB48: 0 | AC48: 0
AB49: 0 | AC49: 0
AB50: 0 | AC50: 0
AB51: =COUNTIF(D51:AA51,">0") -> 0 | AC51: =SUM(D51:AA51) -> 0 | AD51: =AC51/AB51 -> 
AB52: 0 | AC52: 0
A53: 1 | B53: 2 | C53: 3 | D53: 4 | E53: 5 | F53: 6 | G53: 7 | H53: 8 | I53: 9 | J53: 10 | K53: 11 | L53: 12 | M53: 13 | N53: 14 | O53: 15 | P53: 16 | Q53: 17 | R53: 18 | S53: 19 | T53: 20 | U53: 21 | V53: 22 | W53: 23 | X53: 24 | Y53: 25 | Z53: 26 | AA53: 27 | AB53: 28 | AC53: 29 | AD53: 30

Sheet IND.
A2: CAMPEONATO SUDAMERICANO JUVENIL 2014
A3: INDVIDUAL SUB 16
A5: Cod | B5: Nombre del Jugador | C5: FEDERACION | D5: L1 | E5: L2 | F5: L3 | G5: L4 | H5: L5 | I5: L6 | J5: L7 | K5: L8 | L5: L9 | M5: L10 | N5: L11 | O5: L12 | P5: total | Q5: lin | R5: Prom | S5: Pos. | T5: dif
A6: J05 | B6: =VLOOKUP($A6,datos!$A$4:$AD$52,2) -> MAURICIO CABRERA | C6: =VLOOKUP($A6,datos!$A$4:$AD$52,3) -> Colombia | D6: =VLOOKUP($A6,datos!$A$4:$AD$52,4) -> 257 | E6: =VLOOKUP($A6,datos!$A$4:$AD$52,5) -> 212 | F6: =VLOOKUP($A6,datos!$A$4:$AD$52,6) -> 213 | G6: =VLOOKUP($A6,datos!$A$4:$AD$52,7) -> 188 | H6: =VLOOKUP($A6,datos!$A$4:$AD$52,8) -> 191 | I6: =VLOOKUP($A6,datos!$A$4:$AD$52,9) -> 161 | J6: =VLOOKUP($A6,datos!$A$4:$AD$52,10) -> 191 | K6: =VLOOKUP($A6,datos!$A$4:$AD$52,11) -> 190 | L6: =VLOOKUP($A6,datos!$A$4:$AD$52,12) -> 171 | M6: =VLOOKUP($A6,datos!$A$4:$AD$52,13) -> 190 | N6: =VLOOKUP($A6,datos!$A$4:$AD$52,14) -> 228 | O6: =VLOOKUP($A6,datos!$A$4:$AD$52,15) -> 180 | P6: =SUM(D6:O6) -> 2372 | Q6: =COUNTIF(D6:O6,">0") -> 12 | R6: =P6/Q6 -> 197.6666667 | S6: 1º | T6: =MAX($P$6:$P$16)-P6 -> 0
A7: J09 | B7: =VLOOKUP($A7,datos!$A$4:$AD$52,2) -> SEBASTIAN YUZURIHA | C7: =VLOOKUP($A7,datos!$A$4:$AD$52,3) -> Perú | D7: =VLOOKUP($A7,datos!$A$4:$AD$52,4) -> 155 | E7: =VLOOKUP($A7,datos!$A$4:$AD$52,5) -> 168 | F7: =VLOOKUP($A7,datos!$A$4:$AD$52,6) -> 201 | G7: =VLOOKUP($A7,datos!$A$4:$AD$52,7) -> 264 | H7: =VLOOKUP($A7,datos!$A$4:$AD$52,8) -> 277 | I7: =VLOOKUP($A7,datos!$A$4:$AD$52,9) -> 205 | J7: =VLOOKUP($A7,datos!$A$4:$AD$52,10) -> 189 | K7: =VLOOKUP($A7,datos!$A$4:$AD$52,11) -> 200 | L7: =VLOOKUP($A7,datos!$A$4:$AD$52,12) -> 153 | M7: =VLOOKUP($A7,datos!$A$4:$AD$52,13) -> 182 | N7: =VLOOKUP($A7,datos!$A$4:$AD$52,14) -> 168 | O7: =VLOOKUP($A7,datos!$A$4:$AD$52,15) -> 184 | P7: 2346 | Q7: =COUNTIF(D7:O7,">0") -> 12 | R7: =P7/Q7 -> 195.5 | S7: 2º | T7: 26
A8: J03 | B8: =VLOOKUP($A8,datos!$A$4:$AD$52,2) -> RENALD THIEL | C8: =VLOOKUP($A8,datos!$A$4:$AD$52,3) -> Aruba | D8: =VLOOKUP($A8,datos!$A$4:$AD$52,4) -> 213 | E8: =VLOOKUP($A8,datos!$A$4:$AD$52,5) -> 160 | F8: =VLOOKUP($A8,datos!$A$4:$AD$52,6) -> 173 | G8: =VLOOKUP($A8,datos!$A$4:$AD$52,7) -> 214 | H8: =VLOOKUP($A8,datos!$A$4:$AD$52,8) -> 194 | I8: =VLOOKUP($A8,datos!$A$4:$AD$52,9) -> 202 | J8: =VLOOKUP($A8,datos!$A$4:$AD$52,10) -> 204 | K8: =VLOOKUP($A8,datos!$A$4:$AD$52,11) -> 191 | L8: =VLOOKUP($A8,datos!$A$4:$AD$52,12) -> 221 | M8: =VLOOKUP($A8,datos!$A$4:$AD$52,13) -> 187 | N8: =VLOOKUP($A8,datos!$A$4:$AD$52,14) -> 188 | O8: =VLOOKUP($A8,datos!$A$4:$AD$52,15) -> 170 | P8: 2317 | Q8: 12 | R8: 193.0833333 | S8: 3º | T8: 55
A9: J04 | B9: =VLOOKUP($A9,datos!$A$4:$AD$52,2) -> SEBASTIAN SALAZAR | C9: =VLOOKUP($A9,datos!$A$4:$AD$52,3) -> Colombia | D9: =VLOOKUP($A9,datos!$A$4:$AD$52,4) -> 213 | E9: =VLOOKUP($A9,datos!$A$4:$AD$52,5) -> 222 | F9: =VLOOKUP($A9,datos!$A$4:$AD$52,6) -> 159 | G9: =VLOOKUP($A9,datos!$A$4:$AD$52,7) -> 211 | H9: =VLOOKUP($A9,datos!$A$4:$AD$52,8) -> 233 | I9: =VLOOKUP($A9,datos!$A$4:$AD$52,9) -> 145 | J9: =VLOOKUP($A9,datos!$A$4:$AD$52,10) -> 194 | K9: =VLOOKUP($A9,datos!$A$4:$AD$52,11) -> 170 | L9: =VLOOKUP($A9,datos!$A$4:$AD$52,12) -> 203 | M9: =VLOOKUP($A9,datos!$A$4:$AD$52,13) -> 211 | N9: =VLOOKUP($A9,datos!$A$4:$AD$52,14) -> 158 | O9: =VLOOKUP($A9,datos!$A$4:$AD$52,15) -> 180 | P9: 2299 | Q9: 12 | R9: 191.5833333 | S9: 4º | T9: 73
A10: J08 | B10: =VLOOKUP($A10,datos!$A$4:$AD$52,2) -> ALEJANDRO ISHIKAWA | C10: =VLOOKUP($A10,datos!$A$4:$AD$52,3) -> Perú | D10: =VLOOKUP($A10,datos!$A$4:$AD$52,4) -> 166 | E10: =VLOOKUP($A10,datos!$A$4:$AD$52,5) -> 179 | F10: =VLOOKUP($A10,datos!$A$4:$AD$52,6) -> 214 | G10: =VLOOKUP($A10,datos!$A$4:$AD$52,7) -> 188 | H10: =VLOOKUP($A10,datos!$A$4:$AD$52,8) -> 228 | I10: =VLOOKUP($A10,datos!$A$4:$AD$52,9) -> 195 | J10: =VLOOKUP($A10,datos!$A$4:$AD$52,10) -> 141 | K10: =VLOOKUP($A10,datos!$A$4:$AD$52,11) -> 237 | L10: =VLOOKUP($A10,datos!$A$4:$AD$52,12) -> 165 | M10: =VLOOKUP($A10,datos!$A$4:$AD$52,13) -> 179 | N10: =VLOOKUP($A10,datos!$A$4:$AD$52,14) -> 160 | O10: =VLOOKUP($A10,datos!$A$4:$AD$52,15) -> 170 | P10: 2222 | Q10: 12 | R10: 185.1666667 | S10: 5º | T10: 150
A11: J01 | B11: =VLOOKUP($A11,datos!$A$4:$AD$52,2) -> JUAN IGNACIO ALI | C11: =VLOOKUP($A11,datos!$A$4:$AD$52,3) -> Argentina | D11: =VLOOKUP($A11,datos!$A$4:$AD$52,4) -> 171 | E11: =VLOOKUP($A11,datos!$A$4:$AD$52,5) -> 182 | F11: =VLOOKUP($A11,datos!$A$4:$AD$52,6) -> 177 | G11: =VLOOKUP($A11,datos!$A$4:$AD$52,7) -> 157 | H11: =VLOOKUP($A11,datos!$A$4:$AD$52,8) -> 160 | I11: =VLOOKUP($A11,datos!$A$4:$AD$52,9) -> 202 | J11: =VLOOKUP($A11,datos!$A$4:$AD$52,10) -> 179 | K11: =VLOOKUP($A11,datos!$A$4:$AD$52,11) -> 166 | L11: =VLOOKUP($A11,datos!$A$4:$AD$52,12) -> 170 | M11: =VLOOKUP($A11,datos!$A$4:$AD$52,13) -> 180 | N11: =VLOOKUP($A11,datos!$A$4:$AD$52,14) -> 190 | O11: =VLOOKUP($A11,datos!$A$4:$AD$52,15) -> 180 | P11: 2114 | Q11: 12 | R11: 176.1666667 | S11: 6º | T11: 258
A12: J02 | B12: =VLOOKUP($A12,datos!$A$4:$AD$52,2) -> JAIR KELLY | C12: =VLOOKUP($A12,datos!$A$4:$AD$52,3) -> Aruba | D12: =VLOOKUP($A12,datos!$A$4:$AD$52,4) -> 118 | E12: =VLOOKUP($A12,datos!$A$4:$AD$52,5) -> 147 | F12: =VLOOKUP($A12,datos!$A$4:$AD$52,6) -> 188 | G12: =VLOOKUP($A12,datos!$A$4:$AD$52,7) -> 211 | H12: =VLOOKUP($A12,datos!$A$4:$AD$52,8) -> 199 | I12: =VLOOKUP($A12,datos!$A$4:$AD$52,9) -> 146 | J12: =VLOOKUP($A12,datos!$A$4:$AD$52,10) -> 204 | K12: =VLOOKUP($A12,datos!$A$4:$AD$52,11) -> 141 | L12: =VLOOKUP($A12,datos!$A$4:$AD$52,12) -> 124 | M12: =VLOOKUP($A12,datos!$A$4:$AD$52,13) -> 232 | N12: =VLOOKUP($A12,datos!$A$4:$AD$52,14) -> 166 | O12: =VLOOKUP($A12,datos!$A$4:$AD$52,15) -> 162 | P12: 2038 | Q12: 12 | R12: 169.8333333 | S12: 7º | T12: 334
A13: J11 | B13: =VLOOKUP($A13,datos!$A$4:$AD$52,2) -> JOAQUIN MANRIQUE D. | C13: =VLOOKUP($A13,datos!$A$4:$AD$52,3) -> Uruguay | D13: =VLOOKUP($A13,datos!$A$4:$AD$52,4) -> 147 | E13: =VLOOKUP($A13,datos!$A$4:$AD$52,5) -> 129 | F13: =VLOOKUP($A13,datos!$A$4:$AD$52,6) -> 163 | G13: =VLOOKUP($A13,datos!$A$4:$AD$52,7) -> 146 | H13: =VLOOKUP($A13,datos!$A$4:$AD$52,8) -> 170 | I13: =VLOOKUP($A13,datos!$A$4:$AD$52,9) -> 166 | J13: =VLOOKUP($A13,datos!$A$4:$AD$52,10) -> 165 | K13: =VLOOKUP($A13,datos!$A$4:$AD$52,11) -> 184 | L13: =VLOOKUP($A13,datos!$A$4:$AD$52,12) -> 156 | M13: =VLOOKUP($A13,datos!$A$4:$AD$52,13) -> 123 | N13: =VLOOKUP($A13,datos!$A$4:$AD$52,14) -> 195 | O13: =VLOOKUP($A13,datos!$A$4:$AD$52,15) -> 170 | P13: 1914 | Q13: 12 | R13: 159.5 | S13: 8º | T13: 458
A14: J10 | B14: =VLOOKUP($A14,datos!$A$4:$AD$52,2) -> FRANCO GARCIA D. | C14: =VLOOKUP($A14,datos!$A$4:$AD$52,3) -> Uruguay | D14: =VLOOKUP($A14,datos!$A$4:$AD$52,4) -> 149 | E14: =VLOOKUP($A14,datos!$A$4:$AD$52,5) -> 142 | F14: =VLOOKUP($A14,datos!$A$4:$AD$52,6) -> 155 | G14: =VLOOKUP($A14,datos!$A$4:$AD$52,7) -> 114 | H14: =VLOOKUP($A14,datos!$A$4:$AD$52,8) -> 136 | I14: =VLOOKUP($A14,datos!$A$4:$AD$52,9) -> 166 | J14: =VLOOKUP($A14,datos!$A$4:$AD$52,10) -> 201 | K14: =VLOOKUP($A14,datos!$A$4:$AD$52,11) -> 135 | L14: =VLOOKUP($A14,datos!$A$4:$AD$52,12) -> 128 | M14: =VLOOKUP($A14,datos!$A$4:$AD$52,13) -> 170 | N14: =VLOOKUP($A14,datos!$A$4:$AD$52,14) -> 165 | O14: =VLOOKUP($A14,datos!$A$4:$AD$52,15) -> 178 | P14: 1839 | Q14: 12 | R14: 153.25 | S14: 9º | T14: 533
A15: J07 | B15: =VLOOKUP($A15,datos!$A$4:$AD$52,2) -> EDUARDO MARTINEZ G | C15: =VLOOKUP($A15,datos!$A$4:$AD$52,3) -> Chile | D15: =VLOOKUP($A15,datos!$A$4:$AD$52,4) -> 136 | E15: =VLOOKUP($A15,datos!$A$4:$AD$52,5) -> 146 | F15: =VLOOKUP($A15,datos!$A$4:$AD$52,6) -> 136 | G15: =VLOOKUP($A15,datos!$A$4:$AD$52,7) -> 165 | H15: =VLOOKUP($A15,datos!$A$4:$AD$52,8) -> 137 | I15: =VLOOKUP($A15,datos!$A$4:$AD$52,9) -> 134 | J15: =VLOOKUP($A15,datos!$A$4:$AD$52,10) -> 110 | K15: =VLOOKUP($A15,datos!$A$4:$AD$52,11) -> 115 | L15: =VLOOKUP($A15,datos!$A$4:$AD$52,12) -> 120 | M15: =VLOOKUP($A15,datos!$A$4:$AD$52,13) -> 162 | N15: =VLOOKUP($A15,datos!$A$4:$AD$52,14) -> 132 | O15: =VLOOKUP($A15,datos!$A$4:$AD$52,15) -> 154 | P15: 1647 | Q15: 12 | R15: 137.25 | S15: 10º | T15: 725
A16: J06 | B16: =VLOOKUP($A16,datos!$A$4:$AD$52,2) -> SEBASTIAN VICENCIO R | C16: =VLOOKUP($A16,datos!$A$4:$AD$52,3) -> Chile | D16: =VLOOKUP($A16,datos!$A$4:$AD$52,4) -> 121 | E16: =VLOOKUP($A16,datos!$A$4:$AD$52,5) -> 94 | F16: =VLOOKUP($A16,datos!$A$4:$AD$52,6) -> 111 | G16: =VLOOKUP($A16,datos!$A$4:$AD$52,7) -> 125 | H16: =VLOOKUP($A16,datos!$A$4:$AD$52,8) -> 119 | I16: =VLOOKUP($A16,datos!$A$4:$AD$52,9) -> 132 | J16: =VLOOKUP($A16,datos!$A$4:$AD$52,10) -> 152 | K16: =VLOOKUP($A16,datos!$A$4:$AD$52,11) -> 131 | L16: =VLOOKUP($A16,datos!$A$4:$AD$52,12) -> 148 | M16: =VLOOKUP($A16,datos!$A$4:$AD$52,13) -> 145 | N16: =VLOOKUP($A16,datos!$A$4:$AD$52,14) -> 130 | O16: =VLOOKUP($A16,datos!$A$4:$AD$52,15) -> 130 | P16: 1538 | Q16: 12 | R16: 128.1666667 | S16: 11º | T16: 834

Sheet PAR
A2: CAMPEONATO SUDAMERICANO JUVENIL 2014
A3: DOBLES SUB 16
A5: Cod | B5: Nombre del Jugador | C5: FEDERACION | D5: L1 | E5: L2 | F5: L3 | G5: L4 | H5: L5 | I5: L6 | J5: L7 | K5: L8 | L5: L9 | M5: L10 | N5: L11 | O5: L12 | P5: Serie | R5: =S8 -> 419.5833333 | S5: Prom | T5: dif
A6: J04 | B6: =VLOOKUP($A6,datos!$A$4:$AD$52,2) -> SEBASTIAN SALAZAR | C6: =VLOOKUP($A6,datos!$A$4:$AD$52,3) -> Colombia | D6: =VLOOKUP($A6,datos!$A$4:$AD$52,16) -> 256 | E6: =VLOOKUP($A6,datos!$A$4:$AD$52,17) -> 278 | F6: =VLOOKUP($A6,datos!$A$4:$AD$52,18) -> 204 | G6: =VLOOKUP($A6,datos!$A$4:$AD$52,19) -> 194 | H6: =VLOOKUP($A6,datos!$A$4:$AD$52,20) -> 238 | I6: =VLOOKUP($A6,datos!$A$4:$AD$52,21) -> 178 | J6: =VLOOKUP($A6,datos!$A$4:$AD$52,22) -> 218 | K6: =VLOOKUP($A6,datos!$A$4:$AD$52,23) -> 168 | L6: =VLOOKUP($A6,datos!$A$4:$AD$52,24) -> 201 | M6: =VLOOKUP($A6,datos!$A$4:$AD$52,25) -> 190 | N6: =VLOOKUP($A6,datos!$A$4:$AD$52,26) -> 158 | O6: =VLOOKUP($A6,datos!$A$4:$AD$52,27) -> 218 | P6: =SUM(D6:O6) -> 2501 | Q6: =(COUNTIF(D6:I6,">0")) -> 6 | R6: =S8 -> 419.5833333 | S6: =P6/Q6 -> 416.8333333 | T6: =$P$8-P8 -> 0
A7: J05 | B7: =VLOOKUP($A7,datos!$A$4:$AD$52,2) -> MAURICIO CABRERA | C7: =VLOOKUP($A7,datos!$A$4:$AD$52,3) -> Colombia | D7: =VLOOKUP($A7,datos!$A$4:$AD$52,16) -> 189 | E7: =VLOOKUP($A7,datos!$A$4:$AD$52,17) -> 227 | F7: =VLOOKUP($A7,datos!$A$4:$AD$52,18) -> 235 | G7: =VLOOKUP($A7,datos!$A$4:$AD$52,19) -> 187 | H7: =VLOOKUP($A7,datos!$A$4:$AD$52,20) -> 222 | I7: =VLOOKUP($A7,datos!$A$4:$AD$52,21) -> 213 | J7: =VLOOKUP($A7,datos!$A$4:$AD$52,22) -> 232 | K7: =VLOOKUP($A7,datos!$A$4:$AD$52,23) -> 181 | L7: =VLOOKUP($A7,datos!$A$4:$AD$52,24) -> 216 | M7: =VLOOKUP($A7,datos!$A$4:$AD$52,25) -> 224 | N7: =VLOOKUP($A7,datos!$A$4:$AD$52,26) -> 233 | O7: =VLOOKUP($A7,datos!$A$4:$AD$52,27) -> 175 | P7: =SUM(D7:O7) -> 2534 | Q7: =(COUNTIF(D7:I7,">0")) -> 6 | R7: =S8 -> 419.5833333 | S7: =P7/Q7 -> 422.3333333 | T7: 1°
D8: =SUM(D6:D7) -> 445 | E8: 505 | F8: 439 | G8: 381 | H8: 460 | I8: 391 | J8: 450 | K8: 349 | L8: 417 | M8: 414 | N8: 391 | O8: 393 | P8: 5035 | Q8: =(COUNTIF(D8:I8,">0"))*2 -> 12 | R8: =S8 -> 419.5833333 | S8: =P8/Q8 -> 419.5833333 | V8: =MAX(D8:I8) -> 505
R9: =S8 -> 419.5833333
A10: Cod | B10: Nombre del Jugador | C10: FEDERACION | D10: L1 | E10: L2 | F10: L3 | G10: L4 | H10: L5 | I10: L6 | J10: L7 | K10: L8 | L10: L9 | M10: L10 | N10: L11 | O10: L12 | P10: Serie | R10: =S13 -> 404.1666667 | S10: Prom | T10: dif
A11: J08 | B11: =VLOOKUP($A11,datos!$A$4:$AD$52,2) -> ALEJANDRO ISHIKAWA | C11: =VLOOKUP($A11,datos!$A$4:$AD$52,3) -> Perú | D11: =VLOOKUP($A11,datos!$A$4:$AD$52,16) -> 233 | E11: =VLOOKUP($A11,datos!$A$4:$AD$52,17) -> 204 | F11: =VLOOKUP($A11,datos!$A$4:$AD$52,18) -> 222 | G11: =VLOOKUP($A11,datos!$A$4:$AD$52,19) -> 211 | H11: =VLOOKUP($A11,datos!$A$4:$AD$52,20) -> 180 | I11: =VLOOKUP($A11,datos!$A$4:$AD$52,21) -> 187 | J11: =VLOOKUP($A11,datos!$A$4:$AD$52,22) -> 144 | K11: =VLOOKUP($A11,datos!$A$4:$AD$52,23) -> 258 | L11: =VLOOKUP($A11,datos!$A$4:$AD$52,24) -> 178 | M11: =VLOOKUP($A11,datos!$A$4:$AD$52,25) -> 162 | N11: =VLOOKUP($A11,datos!$A$4:$AD$52,26) -> 290 | O11: =VLOOKUP($A11,datos!$A$4:$AD$52,27) -> 161 | P11: =SUM(D11:O11) -> 2430 | Q11: =(COUNTIF(D11:I11,">0")) -> 6 | R11: =S13 -> 404.1666667 | S11: =P11/Q11 -> 405 | T11: =$P$8-P13 -> 185
A12: J09 | B12: =VLOOKUP($A12,datos!$A$4:$AD$52,2) -> SEBASTIAN YUZURIHA | C12: =VLOOKUP($A12,datos!$A$4:$AD$52,3) -> Perú | D12: =VLOOKUP($A12,datos!$A$4:$AD$52,16) -> 206 | E12: =VLOOKUP($A12,datos!$A$4:$AD$52,17) -> 188 | F12: =VLOOKUP($A12,datos!$A$4:$AD$52,18) -> 171 | G12: =VLOOKUP($A12,datos!$A$4:$AD$52,19) -> 211 | H12: =VLOOKUP($A12,datos!$A$4:$AD$52,20) -> 219 | I12: =VLOOKUP($A12,datos!$A$4:$AD$52,21) -> 199 | J12: =VLOOKUP($A12,datos!$A$4:$AD$52,22) -> 227 | K12: =VLOOKUP($A12,datos!$A$4:$AD$52,23) -> 152 | L12: =VLOOKUP($A12,datos!$A$4:$AD$52,24) -> 169 | M12: =VLOOKUP($A12,datos!$A$4:$AD$52,25) -> 213 | N12: =VLOOKUP($A12,datos!$A$4:$AD$52,26) -> 223 | O12: =VLOOKUP($A12,datos!$A$4:$AD$52,27) -> 242 | P12: =SUM(D12:O12) -> 2420 | Q12: =(COUNTIF(D12:I12,">0")) -> 6 | R12: =S13 -> 404.1666667 | S12: =P12/Q12 -> 403.3333333 | T12: 2°
D13: =SUM(D11:D12) -> 439 | E13: 392 | F13: 393 | G13: 422 | H13: 399 | I13: 386 | J13: 371 | K13: 410 | L13: 347 | M13: 375 | N13: 513 | O13: 403 | P13: 4850 | Q13: =(COUNTIF(D13:I13,">0"))*2 -> 12 | R13: =S13 -> 404.1666667 | S13: =P13/Q13 -> 404.1666667 | V13: =MAX(D13:I13) -> 439
R14: =S13 -> 404.1666667
A15: Cod | B15: Nombre del Jugador | C15: FEDERACION | D15: L1 | E15: L2 | F15: L3 | G15: L4 | H15: L5 | I15: L6 | J15: L7 | K15: L8 | L15: L9 | M15: L10 | N15: L11 | O15: L12 | P15: Serie | R15: =S18 -> 359 | S15: Prom | T15: dif
A16: J02 | B16: =VLOOKUP($A16,datos!$A$4:$AD$52,2) -> JAIR KELLY | C16: =VLOOKUP($A16,datos!$A$4:$AD$52,3) -> Aruba | D16: =VLOOKUP($A16,datos!$A$4:$AD$52,16) -> 121 | E16: =VLOOKUP($A16,datos!$A$4:$AD$52,17) -> 134 | F16: =VLOOKUP($A16,datos!$A$4:$AD$52,18) -> 158 | G16: =VLOOKUP($A16,datos!$A$4:$AD$52,19) -> 237 | H16: =VLOOKUP($A16,datos!$A$4:$AD$52,20) -> 199 | I16: =VLOOKUP($A16,datos!$A$4:$AD$52,21) -> 200 | J16: =VLOOKUP($A16,datos!$A$4:$AD$52,22) -> 179 | K16: =VLOOKUP($A16,datos!$A$4:$AD$52,23) -> 216 | L16: =VLOOKUP($A16,datos!$A$4:$AD$52,24) -> 169 | M16: =VLOOKUP($A16,datos!$A$4:$AD$52,25) -> 192 | N16: =VLOOKUP($A16,datos!$A$4:$AD$52,26) -> 187 | O16: =VLOOKUP($A16,datos!$A$4:$AD$52,27) -> 227 | P16: =SUM(D16:O16) -> 2219 | Q16: =(COUNTIF(D16:I16,">0")) -> 6 | R16: =S18 -> 359 | S16: =P16/Q16 -> 369.8333333 | T16: =$P$8-P18 -> 727
A17: J03 | B17: =VLOOKUP($A17,datos!$A$4:$AD$52,2) -> RENALD THIEL | C17: =VLOOKUP($A17,datos!$A$4:$AD$52,3) -> Aruba | D17: =VLOOKUP($A17,datos!$A$4:$AD$52,16) -> 170 | E17: =VLOOKUP($A17,datos!$A$4:$AD$52,17) -> 150 | F17: =VLOOKUP($A17,datos!$A$4:$AD$52,18) -> 192 | G17: =VLOOKUP($A17,datos!$A$4:$AD$52,19) -> 201 | H17: =VLOOKUP($A17,datos!$A$4:$AD$52,20) -> 229 | I17: =VLOOKUP($A17,datos!$A$4:$AD$52,21) -> 157 | J17: =VLOOKUP($A17,datos!$A$4:$AD$52,22) -> 108 | K17: =VLOOKUP($A17,datos!$A$4:$AD$52,23) -> 158 | L17: =VLOOKUP($A17,datos!$A$4:$AD$52,24) -> 175 | M17: =VLOOKUP($A17,datos!$A$4:$AD$52,25) -> 206 | N17: =VLOOKUP($A17,datos!$A$4:$AD$52,26) -> 200 | O17: =VLOOKUP($A17,datos!$A$4:$AD$52,27) -> 143 | P17: =SUM(D17:O17) -> 2089 | Q17: =(COUNTIF(D17:I17,">0")) -> 6 | R17: =S18 -> 359 | S17: =P17/Q17 -> 348.1666667 | T17: 3°
D18: =SUM(D16:D17) -> 291 | E18: 284 | F18: 350 | G18: 438 | H18: 428 | I18: 357 | J18: 287 | K18: 374 | L18: 344 | M18: 398 | N18: 387 | O18: 370 | P18: 4308 | Q18: =(COUNTIF(D18:I18,">0"))*2 -> 12 | R18: =S18 -> 359 | S18: =P18/Q18 -> 359 | V18: =MAX(D23:I23) -> 457
R19: =S18 -> 359
A20: Cod | B20: Nombre del Jugador | C20: FEDERACION | D20: L1 | E20: L2 | F20: L3 | G20: L4 | H20: L5 | I20: L6 | J20: L7 | K20: L8 | L20: L9 | M20: L10 | N20: L11 | O20: L12 | P20: Serie | R20: =S23 -> 336.5833333 | S20: Prom | T20: dif
A21: J10 | B21: =VLOOKUP($A21,datos!$A$4:$AD$52,2) -> FRANCO GARCIA D. | C21: =VLOOKUP($A21,datos!$A$4:$AD$52,3) -> Uruguay | D21: =VLOOKUP($A21,datos!$A$4:$AD$52,16) -> 221 | E21: =VLOOKUP($A21,datos!$A$4:$AD$52,17) -> 167 | F21: =VLOOKUP($A21,datos!$A$4:$AD$52,18) -> 199 | G21: =VLOOKUP($A21,datos!$A$4:$AD$52,19) -> 190 | H21: =VLOOKUP($A21,datos!$A$4:$AD$52,20) -> 146 | I21: =VLOOKUP($A21,datos!$A$4:$AD$52,21) -> 136 | J21: =VLOOKUP($A21,datos!$A$4:$AD$52,22) -> 175 | K21: =VLOOKUP($A21,datos!$A$4:$AD$52,23) -> 144 | L21: =VLOOKUP($A21,datos!$A$4:$AD$52,24) -> 131 | M21: =VLOOKUP($A21,datos!$A$4:$AD$52,25) -> 166 | N21: =VLOOKUP($A21,datos!$A$4:$AD$52,26) -> 150 | O21: =VLOOKUP($A21,datos!$A$4:$AD$52,27) -> 188 | P21: =SUM(D21:O21) -> 2013 | Q21: =(COUNTIF(D21:I21,">0")) -> 6 | R21: =S23 -> 336.5833333 | S21: =P21/Q21 -> 335.5 | T21: =$P$8-P23 -> 996
A22: J11 | B22: =VLOOKUP($A22,datos!$A$4:$AD$52,2) -> JOAQUIN MANRIQUE D. | C22: =VLOOKUP($A22,datos!$A$4:$AD$52,3) -> Uruguay | D22: =VLOOKUP($A22,datos!$A$4:$AD$52,16) -> 236 | E22: =VLOOKUP($A22,datos!$A$4:$AD$52,17) -> 158 | F22: =VLOOKUP($A22,datos!$A$4:$AD$52,18) -> 165 | G22: =VLOOKUP($A22,datos!$A$4:$AD$52,19) -> 140 | H22: =VLOOKUP($A22,datos!$A$4:$AD$52,20) -> 183 | I22: =VLOOKUP($A22,datos!$A$4:$AD$52,21) -> 169 | J22: =VLOOKUP($A22,datos!$A$4:$AD$52,22) -> 165 | K22: =VLOOKUP($A22,datos!$A$4:$AD$52,23) -> 183 | L22: =VLOOKUP($A22,datos!$A$4:$AD$52,24) -> 184 | M22: =VLOOKUP($A22,datos!$A$4:$AD$52,25) -> 179 | N22: =VLOOKUP($A22,datos!$A$4:$AD$52,26) -> 126 | O22: =VLOOKUP($A22,datos!$A$4:$AD$52,27) -> 138 | P22: =SUM(D22:O22) -> 2026 | Q22: =(COUNTIF(D22:I22,">0")) -> 6 | R22: =S23 -> 336.5833333 | S22: =P22/Q22 -> 337.6666667 | T22: 4°
D23: =SUM(D21:D22) -> 457 | E23: 325 | F23: 364 | G23: 330 | H23: 329 | I23: 305 | J23: 340 | K23: 327 | L23: 315 | M23: 345 | N23: 276 | O23: 326 | P23: 4039 | Q23: =(COUNTIF(D23:I23,">0"))*2 -> 12 | R23: =S23 -> 336.5833333 | S23: =P23/Q23 -> 336.5833333 | V23: =MAX(D28:I28) -> 324
R24: =S23 -> 336.5833333
A25: Cod | B25: Nombre del Jugador | C25: FEDERACION | D25: L1 | E25: L2 | F25: L3 | G25: L4 | H25: L5 | I25: L6 | J25: L7 | K25: L8 | L25: L9 | M25: L10 | N25: L11 | O25: L12 | P25: Serie | R25: =S28 -> 271.9166667 | S25: Prom | T25: dif
A26: J06 | B26: =VLOOKUP($A26,datos!$A$4:$AD$52,2) -> SEBASTIAN VICENCIO R | C26: =VLOOKUP($A26,datos!$A$4:$AD$52,3) -> Chile | D26: =VLOOKUP($A26,datos!$A$4:$AD$52,16) -> 100 | E26: =VLOOKUP($A26,datos!$A$4:$AD$52,17) -> 103 | F26: =VLOOKUP($A26,datos!$A$4:$AD$52,18) -> 89 | G26: =VLOOKUP($A26,datos!$A$4:$AD$52,19) -> 127 | H26: =VLOOKUP($A26,datos!$A$4:$AD$52,20) -> 163 | I26: =VLOOKUP($A26,datos!$A$4:$AD$52,21) -> 169 | J26: =VLOOKUP($A26,datos!$A$4:$AD$52,22) -> 122 | K26: =VLOOKUP($A26,datos!$A$4:$AD$52,23) -> 97 | L26: =VLOOKUP($A26,datos!$A$4:$AD$52,24) -> 142 | M26: =VLOOKUP($A26,datos!$A$4:$AD$52,25) -> 147 | N26: =VLOOKUP($A26,datos!$A$4:$AD$52,26) -> 132 | O26: =VLOOKUP($A26,datos!$A$4:$AD$52,27) -> 100 | P26: =SUM(D26:O26) -> 1491 | Q26: =(COUNTIF(D26:I26,">0")) -> 6 | R26: =S28 -> 271.9166667 | S26: =P26/Q26 -> 248.5 | T26: =$P$8-P28 -> 1772
A27: J07 | B27: =VLOOKUP($A27,datos!$A$4:$AD$52,2) -> EDUARDO MARTINEZ G | C27: =VLOOKUP($A27,datos!$A$4:$AD$52,3) -> Chile | D27: =VLOOKUP($A27,datos!$A$4:$AD$52,16) -> 177 | E27: =VLOOKUP($A27,datos!$A$4:$AD$52,17) -> 158 | F27: =VLOOKUP($A27,datos!$A$4:$AD$52,18) -> 122 | G27: =VLOOKUP($A27,datos!$A$4:$AD$52,19) -> 134 | H27: =VLOOKUP($A27,datos!$A$4:$AD$52,20) -> 127 | I27: =VLOOKUP($A27,datos!$A$4:$AD$52,21) -> 155 | J27: =VLOOKUP($A27,datos!$A$4:$AD$52,22) -> 164 | K27: =VLOOKUP($A27,datos!$A$4:$AD$52,23) -> 130 | L27: =VLOOKUP($A27,datos!$A$4:$AD$52,24) -> 131 | M27: =VLOOKUP($A27,datos!$A$4:$AD$52,25) -> 125 | N27: =VLOOKUP($A27,datos!$A$4:$AD$52,26) -> 165 | O27: =VLOOKUP($A27,datos!$A$4:$AD$52,27) -> 184 | P27: =SUM(D27:O27) -> 1772 | Q27: =(COUNTIF(D27:I27,">0")) -> 6 | R27: =S28 -> 271.9166667 | S27: =P27/Q27 -> 295.3333333 | T27: 5°
D28: =SUM(D26:D27) -> 277 | E28: 261 | F28: 211 | G28: 261 | H28: 290 | I28: 324 | J28: 286 | K28: 227 | L28: 273 | M28: 272 | N28: 297 | O28: 284 | P28: 3263 | Q28: =(COUNTIF(D28:I28,">0"))*2 -> 12 | R28: =S28 -> 271.9166667 | S28: =P28/Q28 -> 271.9166667 | V28: =MAX(#REF!) -> 
R29: =S28 -> 271.9166667
A30: Cod | B30: Nombre del Jugador | C30: FEDERACION | D30: L1 | E30: L2 | F30: L3 | G30: L4 | H30: L5 | I30: L6 | J30: L7 | K30: L8 | L30: L9 | M30: L10 | N30: L11 | O30: L12 | P30: Serie | R30: =#REF! ->  | S30: Prom
A31: J01 | B31: =VLOOKUP($A31,datos!$A$4:$AD$52,2) -> JUAN IGNACIO ALI | C31: =VLOOKUP($A31,datos!$A$4:$AD$52,3) -> Argentina | D31: =VLOOKUP($A31,datos!$A$4:$AD$52,16) -> 162 | E31: =VLOOKUP($A31,datos!$A$4:$AD$52,17) -> 182 | F31: =VLOOKUP($A31,datos!$A$4:$AD$52,18) -> 168 | G31: =VLOOKUP($A31,datos!$A$4:$AD$52,19) -> 167 | H31: =VLOOKUP($A31,datos!$A$4:$AD$52,20) -> 201 | I31: =VLOOKUP($A31,datos!$A$4:$AD$52,21) -> 155 | J31: =VLOOKUP($A31,datos!$A$4:$AD$52,22) -> 175 | K31: =VLOOKUP($A31,datos!$A$4:$AD$52,23) -> 163 | L31: =VLOOKUP($A31,datos!$A$4:$AD$52,24) -> 167 | M31: =VLOOKUP($A31,datos!$A$4:$AD$52,25) -> 166 | N31: =VLOOKUP($A31,datos!$A$4:$AD$52,26) -> 173 | O31: =VLOOKUP($A31,datos!$A$4:$AD$52,27) -> 216 | P31: =SUM(D31:O31) -> 2095 | Q31: =(COUNTIF(D31:I31,">0")) -> 6 | R31: =#REF! ->  | S31: =P31/Q31 -> 349.1666667

Sheet T EVENTO
A2: CAMPEONATO SUDAMERICANO JUVENIL 2014
A3: TODO EVENTO INDIVIDUAL
A4: SANTIAGO DE CHILE - DEL 12 AL 18 DE ABRIL DE 2014
D5: IND. S1 | J5: INDIVIDUAL 12L | Q5: DOBLES S1 | W5: DOBLES 12L
A6: Cod | B6: Nombre del Jugador | C6: FEDERACION | D6: L1 | E6: L2 | F6: L3 | G6: L4 | H6: L5 | I6: L6 | J6: L7 | K6: L8 | L6: L9 | M6: L10 | N6: L11 | O6: L12 | P6: Serie | Q6: L13 | R6: L14 | S6: L15 | T6: L16 | U6: L17 | V6: L18 | W6: L19 | X6: L20 | Y6: L21 | Z6: L22 | AA6: L23 | AB6: L24 | AC6: Serie | AD6: L | AE6: Total | AF6: Prom | AG6: Pos. | AH6: dif
A7: J05 | B7: =VLOOKUP($A7,datos!$A$4:$AD$52,2) -> MAURICIO CABRERA | C7: =VLOOKUP($A7,datos!$A$4:$AD$52,3) -> Colombia | D7: =VLOOKUP($A7,datos!$A$4:$AD$52,4) -> 257 | E7: =VLOOKUP($A7,datos!$A$4:$AD$52,5) -> 212 | F7: =VLOOKUP($A7,datos!$A$4:$AD$52,6) -> 213 | G7: =VLOOKUP($A7,datos!$A$4:$AD$52,7) -> 188 | H7: =VLOOKUP($A7,datos!$A$4:$AD$52,8) -> 191 | I7: =VLOOKUP($A7,datos!$A$4:$AD$52,9) -> 161 | J7: =VLOOKUP($A7,datos!$A$4:$AD$52,10) -> 191 | K7: =VLOOKUP($A7,datos!$A$4:$AD$52,11) -> 190 | L7: =VLOOKUP($A7,datos!$A$4:$AD$52,12) -> 171 | M7: =VLOOKUP($A7,datos!$A$4:$AD$52,13) -> 190 | N7: =VLOOKUP($A7,datos!$A$4:$AD$52,14) -> 228 | O7: =VLOOKUP($A7,datos!$A$4:$AD$52,15) -> 180 | P7: =SUM(D7:O7) -> 2372 | Q7: =VLOOKUP($A7,datos!$A$4:$AD$52,16) -> 189 | R7: =VLOOKUP($A7,datos!$A$4:$AD$52,17) -> 227 | S7: =VLOOKUP($A7,datos!$A$4:$AD$52,18) -> 235 | T7: =VLOOKUP($A7,datos!$A$4:$AD$52,19) -> 187 | U7: =VLOOKUP($A7,datos!$A$4:$AD$52,20) -> 222 | V7: =VLOOKUP($A7,datos!$A$4:$AD$52,21) -> 213 | W7: =VLOOKUP($A7,datos!$A$4:$AD$52,22) -> 232 | X7: =VLOOKUP($A7,datos!$A$4:$AD$52,23) -> 181 | Y7: =VLOOKUP($A7,datos!$A$4:$AD$52,24) -> 216 | Z7: =VLOOKUP($A7,datos!$A$4:$AD$52,25) -> 224 | AA7: =VLOOKUP($A7,datos!$A$4:$AD$52,26) -> 233 | AB7: =VLOOKUP($A7,datos!$A$4:$AD$52,27) -> 175 | AC7: =SUM(Q7:AB7) -> 2534 | AD7: =VLOOKUP($A7,datos!$A$4:$AD$52,28) -> 24 | AE7: =VLOOKUP($A7,datos!$A$4:$AD$52,29) -> 4906 | AF7: =AE7/AD7 -> 204.4166667 | AG7: 1º | AH7: =MAX($AE$7:$AE$17)-AE7 -> 0
A8: J04 | B8: =VLOOKUP($A8,datos!$A$4:$AD$52,2) -> SEBASTIAN SALAZAR | C8: =VLOOKUP($A8,datos!$A$4:$AD$52,3) -> Colombia | D8: =VLOOKUP($A8,datos!$A$4:$AD$52,4) -> 213 | E8: =VLOOKUP($A8,datos!$A$4:$AD$52,5) -> 222 | F8: =VLOOKUP($A8,datos!$A$4:$AD$52,6) -> 159 | G8: =VLOOKUP($A8,datos!$A$4:$AD$52,7) -> 211 | H8: =VLOOKUP($A8,datos!$A$4:$AD$52,8) -> 233 | I8: =VLOOKUP($A8,datos!$A$4:$AD$52,9) -> 145 | J8: =VLOOKUP($A8,datos!$A$4:$AD$52,10) -> 194 | K8: =VLOOKUP($A8,datos!$A$4:$AD$52,11) -> 170 | L8: =VLOOKUP($A8,datos!$A$4:$AD$52,12) -> 203 | M8: =VLOOKUP($A8,datos!$A$4:$AD$52,13) -> 211 | N8: =VLOOKUP($A8,datos!$A$4:$AD$52,14) -> 158 | O8: =VLOOKUP($A8,datos!$A$4:$AD$52,15) -> 180 | P8: 2299 | Q8: =VLOOKUP($A8,datos!$A$4:$AD$52,16) -> 256 | R8: =VLOOKUP($A8,datos!$A$4:$AD$52,17) -> 278 | S8: =VLOOKUP($A8,datos!$A$4:$AD$52,18) -> 204 | T8: =VLOOKUP($A8,datos!$A$4:$AD$52,19) -> 194 | U8: =VLOOKUP($A8,datos!$A$4:$AD$52,20) -> 238 | V8: =VLOOKUP($A8,datos!$A$4:$AD$52,21) -> 178 | W8: =VLOOKUP($A8,datos!$A$4:$AD$52,22) -> 218 | X8: =VLOOKUP($A8,datos!$A$4:$AD$52,23) -> 168 | Y8: =VLOOKUP($A8,datos!$A$4:$AD$52,24) -> 201 | Z8: =VLOOKUP($A8,datos!$A$4:$AD$52,25) -> 190 | AA8: =VLOOKUP($A8,datos!$A$4:$AD$52,26) -> 158 | AB8: =VLOOKUP($A8,datos!$A$4:$AD$52,27) -> 218 | AC8: 2501 | AD8: =VLOOKUP($A8,datos!$A$4:$AD$52,28) -> 24 | AE8: =VLOOKUP($A8,datos!$A$4:$AD$52,29) -> 4800 | AF8: 200 | AG8: 2º | AH8: 106
A9: J09 | B9: =VLOOKUP($A9,datos!$A$4:$AD$52,2) -> SEBASTIAN YUZURIHA | C9: =VLOOKUP($A9,datos!$A$4:$AD$52,3) -> Perú | D9: =VLOOKUP($A9,datos!$A$4:$AD$52,4) -> 155 | E9: =VLOOKUP($A9,datos!$A$4:$AD$52,5) -> 168 | F9: =VLOOKUP($A9,datos!$A$4:$AD$52,6) -> 201 | G9: =VLOOKUP($A9,datos!$A$4:$AD$52,7) -> 264 | H9: =VLOOKUP($A9,datos!$A$4:$AD$52,8) -> 277 | I9: =VLOOKUP($A9,datos!$A$4:$AD$52,9) -> 205 | J9: =VLOOKUP($A9,datos!$A$4:$AD$52,10) -> 189 | K9: =VLOOKUP($A9,datos!$A$4:$AD$52,11) -> 200 | L9: =VLOOKUP($A9,datos!$A$4:$AD$52,12) -> 153 | M9: =VLOOKUP($A9,datos!$A$4:$AD$52,13) -> 182 | N9: =VLOOKUP($A9,datos!$A$4:$AD$52,14) -> 168 | O9: =VLOOKUP($A9,datos!$A$4:$AD$52,15) -> 184 | P9: 2346 | Q9: =VLOOKUP($A9,datos!$A$4:$AD$52,16) -> 206 | R9: =VLOOKUP($A9,datos!$A$4:$AD$52,17) -> 188 | S9: =VLOOKUP($A9,datos!$A$4:$AD$52,18) -> 171 | T9: =VLOOKUP($A9,datos!$A$4:$AD$52,19) -> 211 | U9: =VLOOKUP($A9,datos!$A$4:$AD$52,20) -> 219 | V9: =VLOOKUP($A9,datos!$A$4:$AD$52,21) -> 199 | W9: =VLOOKUP($A9,datos!$A$4:$AD$52,22) -> 227 | X9: =VLOOKUP($A9,datos!$A$4:$AD$52,23) -> 152 | Y9: =VLOOKUP($A9,datos!$A$4:$AD$52,24) -> 169 | Z9: =VLOOKUP($A9,datos!$A$4:$AD$52,25) -> 213 | AA9: =VLOOKUP($A9,datos!$A$4:$AD$52,26) -> 223 | AB9: =VLOOKUP($A9,datos!$A$4:$AD$52,27) -> 242 | AC9: 2420 | AD9: =VLOOKUP($A9,datos!$A$4:$AD$52,28) -> 24 | AE9: =VLOOKUP($A9,datos!$A$4:$AD$52,29) -> 4766 | AF9: 198.5833333 | AG9: 3º | AH9: 140
A10: J08 | B10: =VLOOKUP($A10,datos!$A$4:$AD$52,2) -> ALEJANDRO ISHIKAWA | C10: =VLOOKUP($A10,datos!$A$4:$AD$52,3) -> Perú | D10: =VLOOKUP($A10,datos!$A$4:$AD$52,4) -> 166 | E10: =VLOOKUP($A10,datos!$A$4:$AD$52,5) -> 179 | F10: =VLOOKUP($A10,datos!$A$4:$AD$52,6) -> 214 | G10: =VLOOKUP($A10,datos!$A$4:$AD$52,7) -> 188 | H10: =VLOOKUP($A10,datos!$A$4:$AD$52,8) -> 228 | I10: =VLOOKUP($A10,datos!$A$4:$AD$52,9) -> 195 | J10: =VLOOKUP($A10,datos!$A$4:$AD$52,10) -> 141 | K10: =VLOOKUP($A10,datos!$A$4:$AD$52,11) -> 237 | L10: =VLOOKUP($A10,datos!$A$4:$AD$52,12) -> 165 | M10: =VLOOKUP($A10,datos!$A$4:$AD$52,13) -> 179 | N10: =VLOOKUP($A10,datos!$A$4:$AD$52,14) -> 160 | O10: =VLOOKUP($A10,datos!$A$4:$AD$52,15) -> 170 | P10: 2222 | Q10: =VLOOKUP($A10,datos!$A$4:$AD$52,16) -> 233 | R10: =VLOOKUP($A10,datos!$A$4:$AD$52,17) -> 204 | S10: =VLOOKUP($A10,datos!$A$4:$AD$52,18) -> 222 | T10: =VLOOKUP($A10,datos!$A$4:$AD$52,19) -> 211 | U10: =VLOOKUP($A10,datos!$A$4:$AD$52,20) -> 180 | V10: =VLOOKUP($A10,datos!$A$4:$AD$52,21) -> 187 | W10: =VLOOKUP($A10,datos!$A$4:$AD$52,22) -> 144 | X10: =VLOOKUP($A10,datos!$A$4:$AD$52,23) -> 258 | Y10: =VLOOKUP($A10,datos!$A$4:$AD$52,24) -> 178 | Z10: =VLOOKUP($A10,datos!$A$4:$AD$52,25) -> 162 | AA10: =VLOOKUP($A10,datos!$A$4:$AD$52,26) -> 290 | AB10: =VLOOKUP($A10,datos!$A$4:$AD$52,27) -> 161 | AC10: 2430 | AD10: =VLOOKUP($A10,datos!$A$4:$AD$52,28) -> 24 | AE10: =VLOOKUP($A10,datos!$A$4:$AD$52,29) -> 4652 | AF10: 193.8333333 | AG10: 4º | AH10: 254
A11: J03 | B11: =VLOOKUP($A11,datos!$A$4:$AD$52,2) -> RENALD THIEL | C11: =VLOOKUP($A11,datos!$A$4:$AD$52,3) -> Aruba | D11: =VLOOKUP($A11,datos!$A$4:$AD$52,4) -> 213 | E11: =VLOOKUP($A11,datos!$A$4:$AD$52,5) -> 160 | F11: =VLOOKUP($A11,datos!$A$4:$AD$52,6) -> 173 | G11: =VLOOKUP($A11,datos!$A$4:$AD$52,7) -> 214 | H11: =VLOOKUP($A11,datos!$A$4:$AD$52,8) -> 194 | I11: =VLOOKUP($A11,datos!$A$4:$AD$52,9) -> 202 | J11: =VLOOKUP($A11,datos!$A$4:$AD$52,10) -> 204 | K11: =VLOOKUP($A11,datos!$A$4:$AD$52,11) -> 191 | L11: =VLOOKUP($A11,datos!$A$4:$AD$52,12) -> 221 | M11: =VLOOKUP($A11,datos!$A$4:$AD$52,13) -> 187 | N11: =VLOOKUP($A11,datos!$A$4:$AD$52,14) -> 188 | O11: =VLOOKUP($A11,datos!$A$4:$AD$52,15) -> 170 | P11: 2317 | Q11: =VLOOKUP($A11,datos!$A$4:$AD$52,16) -> 170 | R11: =VLOOKUP($A11,datos!$A$4:$AD$52,17) -> 150 | S11: =VLOOKUP($A11,datos!$A$4:$AD$52,18) -> 192 | T11: =VLOOKUP($A11,datos!$A$4:$AD$52,19) -> 201 | U11: =VLOOKUP($A11,datos!$A$4:$AD$52,20) -> 229 | V11: =VLOOKUP($A11,datos!$A$4:$AD$52,21) -> 157 | W11: =VLOOKUP($A11,datos!$A$4:$AD$52,22) -> 108 | X11: =VLOOKUP($A11,datos!$A$4:$AD$52,23) -> 158 | Y11: =VLOOKUP($A11,datos!$A$4:$AD$52,24) -> 175 | Z11: =VLOOKUP($A11,datos!$A$4:$AD$52,25) -> 206 | AA11: =VLOOKUP($A11,datos!$A$4:$AD$52,26) -> 200 | AB11: =VLOOKUP($A11,datos!$A$4:$AD$52,27) -> 143 | AC11: 2089 | AD11: =VLOOKUP($A11,datos!$A$4:$AD$52,28) -> 24 | AE11: =VLOOKUP($A11,datos!$A$4:$AD$52,29) -> 4406 | AF11: 183.5833333 | AG11: 5º | AH11: 500
A12: J02 | B12: =VLOOKUP($A12,datos!$A$4:$AD$52,2) -> JAIR KELLY | C12: =VLOOKUP($A12,datos!$A$4:$AD$52,3) -> Aruba | D12: =VLOOKUP($A12,datos!$A$4:$AD$52,4) -> 118 | E12: =VLOOKUP($A12,datos!$A$4:$AD$52,5) -> 147 | F12: =VLOOKUP($A12,datos!$A$4:$AD$52,6) -> 188 | G12: =VLOOKUP($A12,datos!$A$4:$AD$52,7) -> 211 | H12: =VLOOKUP($A12,datos!$A$4:$AD$52,8) -> 199 | I12: =VLOOKUP($A12,datos!$A$4:$AD$52,9) -> 146 | J12: =VLOOKUP($A12,datos!$A$4:$AD$52,10) -> 204 | K12: =VLOOKUP($A12,datos!$A$4:$AD$52,11) -> 141 | L12: =VLOOKUP($A12,datos!$A$4:$AD$52,12) -> 124 | M12: =VLOOKUP($A12,datos!$A$4:$AD$52,13) -> 232 | N12: =VLOOKUP($A12,datos!$A$4:$AD$52,14) -> 166 | O12: =VLOOKUP($A12,datos!$A$4:$AD$52,15) -> 162 | P12: 2038 | Q12: =VLOOKUP($A12,datos!$A$4:$AD$52,16) -> 121 | R12: =VLOOKUP($A12,datos!$A$4:$AD$52,17) -> 134 | S12: =VLOOKUP($A12,datos!$A$4:$AD$52,18) -> 158 | T12: =VLOOKUP($A12,datos!$A$4:$AD$52,19) -> 237 | U12: =VLOOKUP($A12,datos!$A$4:$AD$52,20) -> 199 | V12: =VLOOKUP($A12,datos!$A$4:$AD$52,21) -> 200 | W12: =VLOOKUP($A12,datos!$A$4:$AD$52,22) -> 179 | X12: =VLOOKUP($A12,datos!$A$4:$AD$52,23) -> 216 | Y12: =VLOOKUP($A12,datos!$A$4:$AD$52,24) -> 169 | Z12: =VLOOKUP($A12,datos!$A$4:$AD$52,25) -> 192 | AA12: =VLOOKUP($A12,datos!$A$4:$AD$52,26) -> 187 | AB12: =VLOOKUP($A12,datos!$A$4:$AD$52,27) -> 227 | AC12: 2219 | AD12: =VLOOKUP($A12,datos!$A$4:$AD$52,28) -> 24 | AE12: =VLOOKUP($A12,datos!$A$4:$AD$52,29) -> 4257 | AF12: 177.375 | AG12: 6º | AH12: 649
A13: J01 | B13: =VLOOKUP($A13,datos!$A$4:$AD$52,2) -> JUAN IGNACIO ALI | C13: =VLOOKUP($A13,datos!$A$4:$AD$52,3) -> Argentina | D13: =VLOOKUP($A13,datos!$A$4:$AD$52,4) -> 171 | E13: =VLOOKUP($A13,datos!$A$4:$AD$52,5) -> 182 | F13: =VLOOKUP($A13,datos!$A$4:$AD$52,6) -> 177 | G13: =VLOOKUP($A13,datos!$A$4:$AD$52,7) -> 157 | H13: =VLOOKUP($A13,datos!$A$4:$AD$52,8) -> 160 | I13: =VLOOKUP($A13,datos!$A$4:$AD$52,9) -> 202 | J13: =VLOOKUP($A13,datos!$A$4:$AD$52,10) -> 179 | K13: =VLOOKUP($A13,datos!$A$4:$AD$52,11) -> 166 | L13: =VLOOKUP($A13,datos!$A$4:$AD$52,12) -> 170 | M13: =VLOOKUP($A13,datos!$A$4:$AD$52,13) -> 180 | N13: =VLOOKUP($A13,datos!$A$4:$AD$52,14) -> 190 | O13: =VLOOKUP($A13,datos!$A$4:$AD$52,15) -> 180 | P13: 2114 | Q13: =VLOOKUP($A13,datos!$A$4:$AD$52,16) -> 162 | R13: =VLOOKUP($A13,datos!$A$4:$AD$52,17) -> 182 | S13: =VLOOKUP($A13,datos!$A$4:$AD$52,18) -> 168 | T13: =VLOOKUP($A13,datos!$A$4:$AD$52,19) -> 167 | U13: =VLOOKUP($A13,datos!$A$4:$AD$52,20) -> 201 | V13: =VLOOKUP($A13,datos!$A$4:$AD$52,21) -> 155 | W13: =VLOOKUP($A13,datos!$A$4:$AD$52,22) -> 175 | X13: =VLOOKUP($A13,datos!$A$4:$AD$52,23) -> 163 | Y13: =VLOOKUP($A13,datos!$A$4:$AD$52,24) -> 167 | Z13: =VLOOKUP($A13,datos!$A$4:$AD$52,25) -> 166 | AA13: =VLOOKUP($A13,datos!$A$4:$AD$52,26) -> 173 | AB13: =VLOOKUP($A13,datos!$A$4:$AD$52,27) -> 216 | AC13: 2095 | AD13: =VLOOKUP($A13,datos!$A$4:$AD$52,28) -> 24 | AE13: =VLOOKUP($A13,datos!$A$4:$AD$52,29) -> 4209 | AF13: 175.375 | AG13: 7º | AH13: 697
A14: J11 | B14: =VLOOKUP($A14,datos!$A$4:$AD$52,2) -> JOAQUIN MANRIQUE D. | C14: =VLOOKUP($A14,datos!$A$4:$AD$52,3) -> Uruguay | D14: =VLOOKUP($A14,datos!$A$4:$AD$52,4) -> 147 | E14: =VLOOKUP($A14,datos!$A$4:$AD$52,5) -> 129 | F14: =VLOOKUP($A14,datos!$A$4:$AD$52,6) -> 163 | G14: =VLOOKUP($A14,datos!$A$4:$AD$52,7) -> 146 | H14: =VLOOKUP($A14,datos!$A$4:$AD$52,8) -> 170 | I14: =VLOOKUP($A14,datos!$A$4:$AD$52,9) -> 166 | J14: =VLOOKUP($A14,datos!$A$4:$AD$52,10) -> 165 | K14: =VLOOKUP($A14,datos!$A$4:$AD$52,11) -> 184 | L14: =VLOOKUP($A14,datos!$A$4:$AD$52,12) -> 156 | M14: =VLOOKUP($A14,datos!$A$4:$AD$52,13) -> 123 | N14: =VLOOKUP($A14,datos!$A$4:$AD$52,14) -> 195 | O14: =VLOOKUP($A14,datos!$A$4:$AD$52,15) -> 170 | P14: 1914 | Q14: =VLOOKUP($A14,datos!$A$4:$AD$52,16) -> 236 | R14: =VLOOKUP($A14,datos!$A$4:$AD$52,17) -> 158 | S14: =VLOOKUP($A14,datos!$A$4:$AD$52,18) -> 165 | T14: =VLOOKUP($A14,datos!$A$4:$AD$52,19) -> 140 | U14: =VLOOKUP($A14,datos!$A$4:$AD$52,20) -> 183 | V14: =VLOOKUP($A14,datos!$A$4:$AD$52,21) -> 169 | W14: =VLOOKUP($A14,datos!$A$4:$AD$52,22) -> 165 | X14: =VLOOKUP($A14,datos!$A$4:$AD$52,23) -> 183 | Y14: =VLOOKUP($A14,datos!$A$4:$AD$52,24) -> 184 | Z14: =VLOOKUP($A14,datos!$A$4:$AD$52,25) -> 179 | AA14: =VLOOKUP($A14,datos!$A$4:$AD$52,26) -> 126 | AB14: =VLOOKUP($A14,datos!$A$4:$AD$52,27) -> 138 | AC14: 2026 | AD14: =VLOOKUP($A14,datos!$A$4:$AD$52,28) -> 24 | AE14: =VLOOKUP($A14,datos!$A$4:$AD$52,29) -> 3940 | AF14: 164.1666667 | AG14: 8º | AH14: 966
A15: J10 | B15: =VLOOKUP($A15,datos!$A$4:$AD$52,2) -> FRANCO GARCIA D. | C15: =VLOOKUP($A15,datos!$A$4:$AD$52,3) -> Uruguay | D15: =VLOOKUP($A15,datos!$A$4:$AD$52,4) -> 149 | E15: =VLOOKUP($A15,datos!$A$4:$AD$52,5) -> 142 | F15: =VLOOKUP($A15,datos!$A$4:$AD$52,6) -> 155 | G15: =VLOOKUP($A15,datos!$A$4:$AD$52,7) -> 114 | H15: =VLOOKUP($A15,datos!$A$4:$AD$52,8) -> 136 | I15: =VLOOKUP($A15,datos!$A$4:$AD$52,9) -> 166 | J15: =VLOOKUP($A15,datos!$A$4:$AD$52,10) -> 201 | K15: =VLOOKUP($A15,datos!$A$4:$AD$52,11) -> 135 | L15: =VLOOKUP($A15,datos!$A$4:$AD$52,12) -> 128 | M15: =VLOOKUP($A15,datos!$A$4:$AD$52,13) -> 170 | N15: =VLOOKUP($A15,datos!$A$4:$AD$52,14) -> 165 | O15: =VLOOKUP($A15,datos!$A$4:$AD$52,15) -> 178 | P15: 1839 | Q15: =VLOOKUP($A15,datos!$A$4:$AD$52,16) -> 221 | R15: =VLOOKUP($A15,datos!$A$4:$AD$52,17) -> 167 | S15: =VLOOKUP($A15,datos!$A$4:$AD$52,18) -> 199 | T15: =VLOOKUP($A15,datos!$A$4:$AD$52,19) -> 190 | U15: =VLOOKUP($A15,datos!$A$4:$AD$52,20) -> 146 | V15: =VLOOKUP($A15,datos!$A$4:$AD$52,21) -> 136 | W15: =VLOOKUP($A15,datos!$A$4:$AD$52,22) -> 175 | X15: =VLOOKUP($A15,datos!$A$4:$AD$52,23) -> 144 | Y15: =VLOOKUP($A15,datos!$A$4:$AD$52,24) -> 131 | Z15: =VLOOKUP($A15,datos!$A$4:$AD$52,25) -> 166 | AA15: =VLOOKUP($A15,datos!$A$4:$AD$52,26) -> 150 | AB15: =VLOOKUP($A15,datos!$A$4:$AD$52,27) -> 188 | AC15: 2013 | AD15: =VLOOKUP($A15,datos!$A$4:$AD$52,28) -> 24 | AE15: =VLOOKUP($A15,datos!$A$4:$AD$52,29) -> 3852 | AF15: 160.5 | AG15: 9º | AH15: 1054
A16: J07 | B16: =VLOOKUP($A16,datos!$A$4:$AD$52,2) -> EDUARDO MARTINEZ G | C16: =VLOOKUP($A16,datos!$A$4:$AD$52,3) -> Chile | D16: =VLOOKUP($A16,datos!$A$4:$AD$52,4) -> 136 | E16: =VLOOKUP($A16,datos!$A$4:$AD$52,5) -> 146 | F16: =VLOOKUP($A16,datos!$A$4:$AD$52,6) -> 136 | G16: =VLOOKUP($A16,datos!$A$4:$AD$52,7) -> 165 | H16: =VLOOKUP($A16,datos!$A$4:$AD$52,8) -> 137 | I16: =VLOOKUP($A16,datos!$A$4:$AD$52,9) -> 134 | J16: =VLOOKUP($A16,datos!$A$4:$AD$52,10) -> 110 | K16: =VLOOKUP($A16,datos!$A$4:$AD$52,11) -> 115 | L16: =VLOOKUP($A16,datos!$A$4:$AD$52,12) -> 120 | M16: =VLOOKUP($A16,datos!$A$4:$AD$52,13) -> 162 | N16: =VLOOKUP($A16,datos!$A$4:$AD$52,14) -> 132 | O16: =VLOOKUP($A16,datos!$A$4:$AD$52,15) -> 154 | P16: 1647 | Q16: =VLOOKUP($A16,datos!$A$4:$AD$52,16) -> 177 | R16: =VLOOKUP($A16,datos!$A$4:$AD$52,17) -> 158 | S16: =VLOOKUP($A16,datos!$A$4:$AD$52,18) -> 122 | T16: =VLOOKUP($A16,datos!$A$4:$AD$52,19) -> 134 | U16: =VLOOKUP($A16,datos!$A$4:$AD$52,20) -> 127 | V16: =VLOOKUP($A16,datos!$A$4:$AD$52,21) -> 155 | W16: =VLOOKUP($A16,datos!$A$4:$AD$52,22) -> 164 | X16: =VLOOKUP($A16,datos!$A$4:$AD$52,23) -> 130 | Y16: =VLOOKUP($A16,datos!$A$4:$AD$52,24) -> 131 | Z16: =VLOOKUP($A16,datos!$A$4:$AD$52,25) -> 125 | AA16: =VLOOKUP($A16,datos!$A$4:$AD$52,26) -> 165 | AB16: =VLOOKUP($A16,datos!$A$4:$AD$52,27) -> 184 | AC16: 1772 | AD16: =VLOOKUP($A16,datos!$A$4:$AD$52,28) -> 24 | AE16: =VLOOKUP($A16,datos!$A$4:$AD$52,29) -> 3419 | AF16: 142.4583333 | AG16: 10º | AH16: 1487
A17: J06 | B17: =VLOOKUP($A17,datos!$A$4:$AD$52,2) -> SEBASTIAN VICENCIO R | C17: =VLOOKUP($A17,datos!$A$4:$AD$52,3) -> Chile | D17: =VLOOKUP($A17,datos!$A$4:$AD$52,4) -> 121 | E17: =VLOOKUP($A17,datos!$A$4:$AD$52,5) -> 94 | F17: =VLOOKUP($A17,datos!$A$4:$AD$52,6) -> 111 | G17: =VLOOKUP($A17,datos!$A$4:$AD$52,7) -> 125 | H17: =VLOOKUP($A17,datos!$A$4:$AD$52,8) -> 119 | I17: =VLOOKUP($A17,datos!$A$4:$AD$52,9) -> 132 | J17: =VLOOKUP($A17,datos!$A$4:$AD$52,10) -> 152 | K17: =VLOOKUP($A17,datos!$A$4:$AD$52,11) -> 131 | L17: =VLOOKUP($A17,datos!$A$4:$AD$52,12) -> 148 | M17: =VLOOKUP($A17,datos!$A$4:$AD$52,13) -> 145 | N17: =VLOOKUP($A17,datos!$A$4:$AD$52,14) -> 130 | O17: =VLOOKUP($A17,datos!$A$4:$AD$52,15) -> 130 | P17: 1538 | Q17: =VLOOKUP($A17,datos!$A$4:$AD$52,16) -> 100 | R17: =VLOOKUP($A17,datos!$A$4:$AD$52,17) -> 103 | S17: =VLOOKUP($A17,datos!$A$4:$AD$52,18) -> 89 | T17: =VLOOKUP($A17,datos!$A$4:$AD$52,19) -> 127 | U17: =VLOOKUP($A17,datos!$A$4:$AD$52,20) -> 163 | V17: =VLOOKUP($A17,datos!$A$4:$AD$52,21) -> 169 | W17: =VLOOKUP($A17,datos!$A$4:$AD$52,22) -> 122 | X17: =VLOOKUP($A17,datos!$A$4:$AD$52,23) -> 97 | Y17: =VLOOKUP($A17,datos!$A$4:$AD$52,24) -> 142 | Z17: =VLOOKUP($A17,datos!$A$4:$AD$52,25) -> 147 | AA17: =VLOOKUP($A17,datos!$A$4:$AD$52,26) -> 132 | AB17: =VLOOKUP($A17,datos!$A$4:$AD$52,27) -> 100 | AC17: 1491 | AD17: =VLOOKUP($A17,datos!$A$4:$AD$52,28) -> 24 | AE17: =VLOOKUP($A17,datos!$A$4:$AD$52,29) -> 3029 | AF17: 126.2083333 | AG17: 11º | AH17: 1877

Sheet EVENTO PAIS
A2: CAMPEONATO SUDAMERICANO JUVENIL 2014
A3: TODO EVENTO PAIS (informativo)
A5: Cod | B5: Nombre del Jugador | C5: FEDERACION | D5: TOTAL PALOS | E5: PROM IND | F5: =G6 -> 9706 | G5: TOTAL EQ | H5: PROM EQ
A6: J04 | B6: =VLOOKUP($A6,datos!$A$4:$AD$52,2) -> SEBASTIAN SALAZAR | C6: =VLOOKUP($A6,datos!$A$4:$AD$52,3) -> Colombia | D6: =VLOOKUP($A6,datos!$A$4:$AD$52,29) -> 4800 | E6: =D6/24 -> 200 | F6: =G6 -> 9706 | G6: =SUM(D6:D7) -> 9706 | H6: =SUM(E6:E7)/2 -> 202.2083333
A7: J05 | B7: =VLOOKUP($A7,datos!$A$4:$AD$52,2) -> MAURICIO CABRERA | C7: =VLOOKUP($A7,datos!$A$4:$AD$52,3) -> Colombia | D7: =VLOOKUP($A7,datos!$A$4:$AD$52,29) -> 4906 | E7: =D7/24 -> 204.4166667 | F7: =G6 -> 9706
F8: =G6 -> 9706
A9: Cod | B9: Nombre del Jugador | C9: FEDERACION | D9: TOT IND | E9: PROM IND | F9: =G10 -> 9418 | G9: TOTAL EQ | H9: PROM EQ
A10: J08 | B10: =VLOOKUP($A10,datos!$A$4:$AD$52,2) -> ALEJANDRO ISHIKAWA | C10: =VLOOKUP($A10,datos!$A$4:$AD$52,3) -> Perú | D10: =VLOOKUP($A10,datos!$A$4:$AD$52,29) -> 4652 | E10: =D10/24 -> 193.8333333 | F10: =G10 -> 9418 | G10: =SUM(D10:D11) -> 9418 | H10: =SUM(E10:E11)/2 -> 196.2083333
A11: J09 | B11: =VLOOKUP($A11,datos!$A$4:$AD$52,2) -> SEBASTIAN YUZURIHA | C11: =VLOOKUP($A11,datos!$A$4:$AD$52,3) -> Perú | D11: =VLOOKUP($A11,datos!$A$4:$AD$52,29) -> 4766 | E11: =D11/24 -> 198.5833333 | F11: =G10 -> 9418
F12: =G10 -> 9418
A13: Cod | B13: Nombre del Jugador | C13: FEDERACION | D13: TOTAL PALOS | E13: PROM IND | F13: =G14 -> 8663 | G13: TOTAL EQ | H13: PROM EQ
A14: J02 | B14: =VLOOKUP($A14,datos!$A$4:$AD$52,2) -> JAIR KELLY | C14: =VLOOKUP($A14,datos!$A$4:$AD$52,3) -> Aruba | D14: =VLOOKUP($A14,datos!$A$4:$AD$52,29) -> 4257 | E14: =D14/24 -> 177.375 | F14: =G14 -> 8663 | G14: =SUM(D14:D15) -> 8663 | H14: =SUM(E14:E15)/2 -> 180.4791667
A15: J03 | B15: =VLOOKUP($A15,datos!$A$4:$AD$52,2) -> RENALD THIEL | C15: =VLOOKUP($A15,datos!$A$4:$AD$52,3) -> Aruba | D15: =VLOOKUP($A15,datos!$A$4:$AD$52,29) -> 4406 | E15: =D15/24 -> 183.5833333 | F15: =G14 -> 8663
F16: =G14 -> 8663
A17: Cod | B17: Nombre del Jugador | C17: FEDERACION | D17: TOTAL PALOS | E17: PROM IND | F17: =G18 -> 7792 | G17: TOTAL EQ | H17: PROM EQ
A18: J10 | B18: =VLOOKUP($A18,datos!$A$4:$AD$52,2) -> FRANCO GARCIA D. | C18: =VLOOKUP($A18,datos!$A$4:$AD$52,3) -> Uruguay | D18: =VLOOKUP($A18,datos!$A$4:$AD$52,29) -> 3852 | E18: =D18/24 -> 160.5 | F18: =G18 -> 7792 | G18: =SUM(D18:D19) -> 7792 | H18: =SUM(E18:E19)/2 -> 162.3333333
A19: J11 | B19: =VLOOKUP($A19,datos!$A$4:$AD$52,2) -> JOAQUIN MANRIQUE D. | C19: =VLOOKUP($A19,datos!$A$4:$AD$52,3) -> Uruguay | D19: =VLOOKUP($A19,datos!$A$4:$AD$52,29) -> 3940 | E19: =D19/24 -> 164.1666667 | F19: =G18 -> 7792
F20: =G18 -> 7792
A21: Cod | B21: Nombre del Jugador | C21: FEDERACION | D21: TOTAL PALOS | E21: PROM IND | F21: =G22 -> 6448 | G21: TOTAL EQ | H21: PROM EQ
A22: J06 | B22: =VLOOKUP($A22,datos!$A$4:$AD$52,2) -> SEBASTIAN VICENCIO R | C22: =VLOOKUP($A22,datos!$A$4:$AD$52,3) -> Chile | D22: =VLOOKUP($A22,datos!$A$4:$AD$52,29) -> 3029 | E22: =D22/24 -> 126.2083333 | F22: =G22 -> 6448 | G22: =SUM(D22:D23) -> 6448 | H22: =SUM(E22:E23)/2 -> 134.3333333
A23: J07 | B23: =VLOOKUP($A23,datos!$A$4:$AD$52,2) -> EDUARDO MARTINEZ G | C23: =VLOOKUP($A23,datos!$A$4:$AD$52,3) -> Chile | D23: =VLOOKUP($A23,datos!$A$4:$AD$52,29) -> 3419 | E23: =D23/24 -> 142.4583333 | F23: =G22 -> 6448
F24: =G22 -> 6448
A25: Cod | B25: Nombre del Jugador | C25: FEDERACION | D25: TOTAL PALOS | E25: PROM IND | F25: =G26 -> 4209 | G25: TOTAL EQ
A26: J01 | B26: =VLOOKUP($A26,datos!$A$4:$AD$52,2) -> JUAN IGNACIO ALI | C26: =VLOOKUP($A26,datos!$A$4:$AD$52,3) -> Argentina | D26: =VLOOKUP($A26,datos!$A$4:$AD$52,29) -> 4209 | E26: =D26/24 -> 175.375 | F26: =G26 -> 4209 | G26: =SUM(D26:D27) -> 4209
F27: =G26 -> 4209

Sheet Round Robin y Master
C1: CAMPEONATO SUDAMERICANO JUVENIL 2014
C2: SANTIAGO DE CHILE DEL 12 AL 18 DE ABRIL DE 2014
C3: FINAL MASTER SUB 16
A4: DEPORTISTA | B4: PAÍS | C4: TODO E. | D4: LÍNEA 1 | E4: BONIF | F4: LÍNEA 2 | G4: BONIF | H4: LÍNEA 3 | I4: BONIF | J4: LÍNEA 4 | K4: BONIF | L4: LÍNEA 5 | M4: BONIF | N4: LÍNEA 6 | O4: BONIF | P4: LÍNEA 7 | Q4: BONIF | R4: TOTAL | S4: DIF. | T4: POSICIÓN
A5: MAURICIO CABRERA | B5: Colombia | C5: 4906 | D5: 183 | E5: 20 | F5: 143 | G5: 0 | H5: 211 | I5: 20 | J5: 226 | K5: 20 | L5: 232 | M5: 20 | N5: 181 | O5: 0 | P5: 214 | Q5: 20 | R5: =D5+E5+F5+G5+H5+I5+J5+K5+L5+M5+N5+O5+P5+Q5+C5 -> 6396 | S5: =R5-R5 -> 0 | T5: 1°
A6: SEBASTIAN SALAZAR | B6: Colombia | C6: 4800 | D6: 155 | E6: 0 | F6: 205 | G6: 20 | H6: 201 | I6: 20 | J6: 212 | K6: 20 | L6: 187 | M6: 0 | N6: 204 | O6: 20 | P6: 215 | Q6: 20 | R6: 6279 | S6: =R5-R6 -> 117 | T6: 2°
A7: SEBASTIAN YUZURIHA | B7: Perú | C7: 4766 | D7: 214 | E7: 20 | F7: 212 | G7: 20 | H7: 168 | I7: 0 | J7: 166 | K7: 20 | L7: 246 | M7: 20 | N7: 216 | O7: 20 | P7: 168 | Q7: 20 | R7: 6276 | S7: =R5-R7 -> 120 | T7: 3°
A8: ALEJANDRO ISHIKAWA | B8: Perú | C8: 4652 | D8: 192 | E8: 0 | F8: 151 | G8: 0 | H8: 205 | I8: 0 | J8: 198 | K8: 0 | L8: 210 | M8: 20 | N8: 201 | O8: 20 | P8: 219 | Q8: 0 | R8: 6068 | S8: =R5-R8 -> 328 | T8: 4°
A9: RENALD THIEL | B9: Aruba | C9: 4406 | D9: 211 | E9: 20 | F9: 179 | G9: 20 | H9: 178 | I9: 20 | J9: 241 | K9: 20 | L9: 237 | M9: 20 | N9: 161 | O9: 0 | P9: 204 | Q9: 0 | R9: 5917 | S9: =R5-R9 -> 479 | T9: 5°
A10: JAIR KELLY | B10: Aruba | C10: 4257 | D10: 128 | E10: 0 | F10: 176 | G10: 20 | H10: 124 | I10: 0 | J10: 180 | K10: 0 | L10: 147 | M10: 0 | N10: 222 | O10: 20 | P10: 236 | Q10: 20 | R10: 5530 | S10: =R5-R10 -> 866 | T10: 6°
A11: JUAN IGNACIO ALI | B11: Argentina | C11: 4209 | D11: 162 | E11: 0 | F11: 161 | G11: 0 | H11: 178 | I11: 20 | J11: 157 | K11: 0 | L11: 188 | M11: 0 | N11: 173 | O11: 0 | P11: 171 | Q11: 0 | R11: 5419 | S11: =R5-R11 -> 977 | T11: 7°
A12: JOAQUIN MANRIQUE D. | B12: Uruguay | C12: 3940 | D12: 167 | E12: 20 | F12: 124 | G12: 0 | H12: 170 | I12: 0 | J12: 161 | K12: 0 | L12: 151 | M12: 0 | N12: 183 | O12: 0 | P12: 159 | Q12: 0 | R12: 5075 | S12: =R5-R12 -> 1321 | T12: 8°
A16: MAURICIO CABRERA | B16: 251
A17: 1° VS 4° | D17: MAURICIO CABRERA | G17: G1 | I17: 171 | L17: CAMPEÓN | P17: SEBASTIÁN YUZURIHA
A18: ALEJANDRO ISHIKAWA | B18: 189 | H18: G1 VS G2
A20: SEBASTIAN SALAZAR | B20: 189
A21: 2° VS 3° | D21: SEBASTIÁN YUZURIHA | G21: G2 | I21: 192 | L21: SUBCAMPEÓN | P21: MAURICIO CABRERA
A22: SEBASTIAN YUZURIHA | B22: 215
A23: TERCERO | C23: BRONCE | F23: SEBASTIÁN SALAZAR
A25: TERCERO | C25: BRONCE | F25: ALEJANDRO ISHIKAWA
